Cogmind - Beta 13 @@@ ROGUE MODE // 2024.04.06 @ 09:51:52 Player: Blank Result: Destroyed by S-10 Pest with Light Assault Rifle Performance ------------- Evolutions (2) 1000 Regions Visited (3) 600 Robots Destroyed (45) 225 Value Destroyed (1529) 1529 Prototype IDs (5) 100 Alien Tech Used (0) 0 Bonus (0) 0 TOTAL SCORE: 3454 Bonus ------- None Cogmind --------- Core Integrity 0/550 Matter 297/300 Energy 23/100 System Corruption 0% Temperature Cool (0) Movement Core (1350) Ox26 Location -8/Materials Parts ------- > --- POWER (1) -------- (None) > --- PROPULSION (4) --- (None) > --- UTILITY (3) ------ Huge Storage Unit Terrain Scanner > --- WEAPON (3) ------- (None) > --- INVENTORY (25) --- Advanced Treads Aluminum Leg Aluminum Leg Aluminum Leg Carbon-fiber Leg Medium Storage Unit Melee Analysis Suite Recoil Stabilizer Light Armor Plating System Shield EM Pulse Gun Small Laser Small Laser Katana Scythe Peak State ------------ > --- POWER ------------ Light Nuclear Core > --- PROPULSION ------- VSS Leg VSS Leg VSS Leg VSS Leg > --- UTILITY ---------- Heat Sink Huge Storage Unit Hacking Suite > --- WEAPON ----------- Improved EM Shotgun Improved EM Shotgun Gauss Rifle > --- INVENTORY -------- Advanced Treads Aluminum Leg Aluminum Leg Aluminum Leg Aluminum Leg Aluminum Leg Aluminum Leg Aluminum Leg Aluminum Leg Medium Storage Unit Melee Analysis Suite Light Armor Plating Improved Light Armor Plating System Shield EM Pulse Gun Small Laser Small Laser Pulse Rifle Advanced Beam Cannon Advanced Beam Cannon Rocket Launcher Katana Scythe [Rating: 34] Favorites ----------- Power Light Nuclear Core Engine Improved Ion Engine Power Core Light Nuclear Core Propulsion Aluminum Leg Treads Light Treads Leg Aluminum Leg Utility Medium Storage Unit Device Seismic Detector Storage Medium Storage Unit Hackware Hacking Suite Protection Light Armor Plating Weapon EM Pulse Gun Energy Gun EM Pulse Gun Energy Cannon Advanced Beam Cannon Ballistic Gun Assault Rifle Launcher Rocket Launcher Impact Weapon Heavy Hammer Slashing Weapon Katana Build | -11 -10 -9 -8 ------- Run | Yrd Mat Mat Mat Slots Evolved 4 | . . 2 2 Power . | . . . . Propulsion 2 | . . 2 . Utility 1 | . . . 1 Weapon 1 | . . . 1 Parts Attached 82 | 7 13 36 26 Power 5 | 1 1 1 2 Engine 2 | 1 . 1 . Core 3 | . 1 . 2 Reactor . | . . . . Propulsion 20 | 3 . 9 8 Treads 1 | 1 . . . Leg 19 | 2 . 9 8 Wheel . | . . . . Hover . | . . . . Flight . | . . . . Utility 15 | 1 7 4 3 Device 3 | . 1 . 2 Storage 7 | 1 5 1 . Processor . | . . . . Hackware 1 | . . 1 . Protection 4 | . 1 2 1 Artifact . | . . . . Weapon 42 | 2 5 22 13 Energy Gun 19 | . 2 13 4 Energy Cannon 4 | . . 2 2 Ballistic Gun 6 | 2 . 2 2 Ballistic Cannon . | . . . . Launcher 2 | . . . 2 Special Weapon . | . . . . Impact Weapon 4 | . 3 1 . Slashing Weapon 7 | . . 4 3 Piercing Weapon . | . . . . Special Melee Weapon . | . . . . Unidentified Prototypes 1 | . . 1 . Parts Lost 34 | . . 9 25 Power 4 | . . 1 3 Propulsion 10 | . . 1 9 Utility 5 | . . 2 3 Weapon 15 | . . 5 10 Highest Loss Streak 12 | . . 5 12 To Critical Strikes . | . . . . Average Slot Usage (%) 95 | . 98 98 87 Engine 3 | . 3 2 4 Core 7 | . 10 8 2 Leg 34 | . 28 44 34 Device 5 | . 7 2 5 Storage 13 | . 16 11 9 Hackware 2 | . . 2 5 Protection 3 | . 2 5 2 Energy Gun 12 | . 12 11 15 Ballistic Gun 5 | . 11 1 1 Impact Weapon 2 | . 4 1 . Slashing Weapon 2 | . . 4 5 Naked Turns . | . . . . Heaviest Build 97 | 14 91 95 97 Greatest Support 48 | 20 20 48 48 Greatest Overweight (x) 26 | 4 4 2 26 Average Overweight (x) . | . . . 1 Largest Inventory Capacity 25 | 8 25 25 25 Average Capacity 15 | 7 9 15 25 Most Carried 25 | 6 10 20 25 Average Carried 12 | 2 8 11 20 Final Capacity 25 | 8 10 25 25 Final Carried 20 | 6 10 20 15 Class Distribution -------------------- 73% | Mutant 12% | Gunner 11% | Scavenger-Mutant Dominant Class ---------------- Mutant | -10/Materials Mutant | -9/Materials Gunner | -8/Materials Resources | -11 -10 -9 -8 ----------- Run | Yrd Mat Mat Mat Matter Collected 1005 | 215 197 328 265 Remotely . | . . . . Salvage Created 1677 | . 345 607 725 Parts 98 | . 21 31 46 Haulers Intercepted . | . . . . Recyclers Shooed 3 | . . 2 1 Parts Field Recycled . | . . . . Retrieved Matter . | . . . . Parts Self-Destructed . | . . . . Prevented . | . . . . Kills | -11 -10 -9 -8 ------- Run | Yrd Mat Mat Mat Combat Hostiles Destroyed 37 | . 9 14 14 Melee 6 | . . 4 2 Guns 18 | . 7 6 5 AOE 11 | . 2 2 7 Classes Destroyed 10 | . 4 4 2 Worker 1 | . 1 . . Builder 4 | . . 1 3 Watcher 3 | . 1 1 1 Swarmer 7 | . 3 4 . Grunt 17 | . 6 5 6 Brawler 1 | . . 1 . Duelist 1 | . . 1 . Sentry 6 | . . 3 3 Specialist 2 | . . . 2 Hunter 3 | . . . 3 Best Kill Streak 5 | . 3 4 5 Combat Bots Only 5 | . 3 4 5 Max Kills in Single Turn 2 | . 2 2 2 Gunslinging . | . . . . Exploded 2 | . 2 2 2 Melee 1 | . . 1 1 Uniques/NPCs Destroyed . | . . . . Combat | -11 -10 -9 -8 -------- Run | Yrd Mat Mat Mat Hostile Shots Fired 362 | . 35 124 203 Missed 87 | . 12 26 49 Damage Taken 4311 | . 242 1434 2635 Core 928 | . 60 317 551 Absorbed by Shields . | . . . . Core Remaining (%) 65 | 100 76 20 . Volleys Fired 95 | . 17 48 30 Largest 3 | . 2 2 3 Hottest 164 | . 60 85 164 Shots Fired 175 | . 32 78 65 Gun 166 | . 32 78 56 Cannon 4 | . . . 4 Launcher 5 | . . . 5 Special . | . . . . Kinetic 36 | . 16 12 8 Thermal 9 | . . . 9 Explosive 5 | . . . 5 Electromagnetic 125 | . 16 66 43 Robot Hit Streak 20 | . 6 20 13 Robot Miss Streak 4 | . 2 3 4 Penetration Max 1 | . . . 1 Secondary Targets 2 | . . 1 1 Max Gunslinging Chain 1 | . . 1 1 Shots Hit Robots 141 | . 23 69 49 Core Hits 74 | . 15 24 35 Critical Kills 1 | . 1 . . Critical Parts Destroyed 1 | . 1 . . Critical Strikes 7 | . 2 4 1 Destroy 1 | . 1 . . Corrupt 1 | . . 1 . Smash 1 | . 1 . . Sever 4 | . . 3 1 Melee Attacks 47 | . 18 19 10 Impact 21 | . 18 3 . Slashing 26 | . . 16 10 Piercing . | . . . . Sneak Attacks 5 | . 1 1 3 Combat Hostiles 1 | . . 1 . Follow-up Attacks 1 | . . 1 . Damage Inflicted 3575 | . 464 1442 1669 Guns 1495 | . 250 658 587 Cannons 41 | . . . 41 Explosions 1156 | . 88 310 758 Melee 875 | . 118 474 283 Ramming 8 | . 8 . . Kinetic 282 | . 89 97 96 Thermal 809 | . 88 310 411 Explosive 440 | . . . 440 Electromagnetic 1161 | . 161 561 439 Impact 194 | . 118 76 . Slashing 681 | . . 398 283 Piercing . | . . . . Highest Corruption . | . . . . Average Corruption . | . . . . Corruption Purged . | . . . . Corruption Blocked . | . . . . Overload Shots . | . . . . Overflow Damage 175 | . 16 46 113 Projectiles . | . . . . Explosions 61 | . . 7 54 Melee 114 | . 16 39 59 Knockbacks 1 | . 1 . . Impact 1 | . 1 . . Kinetic . | . . . . Secondary . | . . . . Self-Inflicted Damage 322 | . 25 115 182 Shots 9 | . 1 3 5 Rammed . | . . . . Targets Rammed 3 | . 2 . 1 Kicked 3 | . 2 . 1 Crushed . | . . . . Highest Temperature 296 | . 51 296 233 Average Temperature 86 | . 17 118 74 Received Heat Transfer 1245 | . 51 483 711 Effects 3 | . . 3 . Energy Bleed 1 | . . 1 . Interference 2 | . . 2 . Siege Activations . | . . . . Robots Corrupted 2 | . . 2 . Combat Hostiles 2 | . . 2 . Parts Fried 8 | . . 5 3 Impact Corruptions 2 | . 1 1 . Robots Melted . | . . . . Combat Hostiles . | . . . . Parts Melted . | . . . . Heat Transferred 1035 | . 100 500 435 Parts Sabotaged . | . . . . Parts Stolen . | . . . . Parts Stripped . | . . . . Power Chain Reactions 9 | . 1 3 5 Alert | -11 -10 -9 -8 ------- Run | Yrd Mat Mat Mat Peak Influence 372 | . 114 331 372 Initial 70 | . . 9 70 Average 139 | . 32 209 250 Maximum Alert Level 1 | . . 1 1 Low Security (%) 61 | 100 100 29 29 Level 1 38 | . . 70 70 Level 2 . | . . . . Level 3 . | . . . . Level 4 . | . . . . Level 5 . | . . . . High Security . | . . . . Max Security . | . . . . Squads Dispatched 8 | . 2 2 4 Investigation 2 | . 1 . 1 Extermination . | . . . . Reinforcement 6 | . 1 2 3 Assault . | . . . . Garrison . | . . . . Intercept . | . . . . Searches Triggered . | . . . . Construction Impeded 2 | . . 1 1 Haulers Reinforced . | . . . . Active Scanning Responses . | . . . . Cargo Convoy Interrupts . | . . . . Stealth | -11 -10 -9 -8 --------- Run | Yrd Mat Mat Mat Distress Signals 4 | . . 1 3 Communications Jammed . | . . . . Distress Signals . | . . . . Times Spotted 62 | . 16 20 26 Peak Tracking Total 11 | . 3 4 11 Tactical Retreats 6 | . 1 4 1 Traps | -11 -10 -9 -8 ------- Run | Yrd Mat Mat Mat Traps Triggered 2 | . 1 . 1 Indirectly . | . . . . Trap Hack Attempts . | . . . . Triggered . | . . . . Disarmed . | . . . . Reprogrammed . | . . . . Reused . | . . . . Traps Extracted . | . . . . Installed . | . . . . Triggered . | . . . . Machines | -11 -10 -9 -8 ---------- Run | Yrd Mat Mat Mat Machines Disabled 7 | . . 3 4 Max in Single Turn 2 | . . 1 2 Machines Repaired . | . . . . Machines Dismantled . | . . . . Machines Sabotaged . | . . . . Overloaded Fab Kills . | . . . . Hacking | -11 -10 -9 -8 --------- Run | Yrd Mat Mat Mat Machines Accessed 10 | . 6 2 2 Terminals 10 | . 6 2 2 Fabricators . | . . . . Repair Stations . | . . . . Recycling Units . | . . . . Scanalyzers . | . . . . Garrison Access . | . . . . Total Hacks 27 | . 18 4 5 Successful 16 | . 9 3 4 Failed 11 | . 9 1 1 Catastrophic 1 | . 1 . . Database Lockouts . | . . . . Manual . | . . . . Terminals 27 | . 18 4 5 Fabricators . | . . . . Repair Stations . | . . . . Recycling Units . | . . . . Scanalyzers . | . . . . Garrison Access . | . . . . Terminal Hacks 16 | . 9 3 4 Record 2 | . 2 . . Prototype ID Bank 3 | . 1 1 1 Emergency Access Points 1 | . 1 . . Terminal Index 1 | . 1 . . Alert Level 1 | . 1 . . Unreport Threat 1 | . 1 . . Transport Status 1 | . . 1 . Recall Investigation 1 | . . . 1 Hauler Manifests 3 | . 1 1 1 Zone Layout 2 | . 1 . 1 Fabricator Hacks . | . . . . Repair Station Hacks . | . . . . Recycling Unit Hacks . | . . . . Scanalyzer . | . . . . Garrison Access Hacks . | . . . . Unauthorized Hacks . | . . . . Terminals . | . . . . Fabricators . | . . . . Repair Stations . | . . . . Recycling Units . | . . . . Scanalyzers . | . . . . Garrison Access . | . . . . Data Cores Recovered . | . . . . Used . | . . . . Hacking Detections 8 | . 6 1 1 Full Trace Events 2 | . 2 . . Feedback Events . | . . . . Feedback Blocked . | . . . . Robot Schematics Acquired . | . . . . Robots Built . | . . . . Authchips . | . . . . Time . | . . . . Total Robot Build Rating . | . . . . Part Schematics Acquired . | . . . . Parts Built . | . . . . Authchips . | . . . . Time . | . . . . Total Part Build Rating . | . . . . Parts Repaired . | . . . . Time . | . . . . Parts Recycled . | . . . . Recycled Matter . | . . . . Retrieved Matter . | . . . . Retrieved Components . | . . . . Parts Scanalyzed . | . . . . Part Schematics Acquired . | . . . . Parts Damaged . | . . . . Bothacking | -11 -10 -9 -8 ------------ Run | Yrd Mat Mat Mat Used RIF Installer . | . . . . Robots Hacked . | . . . . Non-combat . | . . . . Combat . | . . . . Robot Hacks Applied . | . . . . Relay Couplers Released . | . . . . Fabnet Peak Effective % . | . . . . Robots Rewired . | . . . . Allies Hacked . | . . . . Hacks Repelled . | . . . . Allies | -11 -10 -9 -8 -------- Run | Yrd Mat Mat Mat Total Allies . | . . . . Largest Group . | . . . . Highest-Rated Group . | . . . . Highest-Rated Ally . | . . . . Total Orders . | . . . . Ally Attacks . | . . . . Total Damage . | . . . . Kills . | . . . . Allies Corrupted . | . . . . Allies Melted . | . . . . Intel | -11 -10 -9 -8 ------- Run | Yrd Mat Mat Mat Robot Analysis Total . | . . . . Derelict Logs Recovered . | . . . . Drone Launches . | . . . . Drone Recoveries . | . . . . Exploration | -11 -10 -9 -8 ------------- Run | Yrd Mat Mat Mat Turns Passed 3013 | 93 1264 901 755 Spaces Moved 1529 | 63 721 458 287 Core 13 | 12 . . 1 Treads 6 | 6 . . . Legs 1510 | 45 721 458 286 Wheels . | . . . . Hover . | . . . . Flight . | . . . . Fastest Speed 50 | 50 120 97 180 Average Speed 154 | 123 147 135 209 Slowest Speed 1350 | 250 400 267 1350 Overloaded Moves . | . . . . Propulsion Burnouts . | . . . . Robots Hopped . | . . . . Cave-ins Triggered . | . . . . Exploration Rate (%) 31 | 5 75 26 21 Regions Visited 3 Branch Regions . Pre-discovered Areas . | . . . . Known Exits Taken . | . . . . Unknown Exits Taken 3 | 1 1 1 . Scrap Searched . | . . . . Spaces Dug 15 | . 10 2 3 Terrain Destroyed 82 | . 12 12 58 Melee 15 | . 10 2 3 Projectile . | . . . . AOE 67 | . 2 10 55 Terrain Rammed . | . . . . Walls Destroyed . | . . . . Machines Disabled . | . . . . Actions | -11 -10 -9 -8 --------- Run | Yrd Mat Mat Mat Total 1950 | 75 860 637 378 Wait 122 | . 67 39 16 Move 1526 | 62 720 457 287 Hop . | . . . . Pick Up 43 | 5 11 19 8 Fast Attach 20 | 7 3 6 4 Attach 28 | . 1 11 16 Detach 6 | 1 1 3 1 Swap 34 | . 9 19 6 Drop 25 | . 11 14 . Fire 95 | . 17 48 30 Melee 43 | . 18 16 9 Ram . | . . . . Kick 3 | . 2 . 1 Crush . | . . . . Escape Stasis . | . . . . Rewire 5 | . . 5 . Trap . | . . . . Miscellaneous . | . . . . Route ------- -11/Scrapyard -10/Materials (discovered 2 exits: *Mat / [Min]) -9/Materials -8/Materials History --------- Turn | Location | Event 6 | -11/Scrapyard | Discovered new exit (range 13) 94 | -11/Scrapyard | Entered Materials 315 | -10/Materials | Build established: Mutant 987 | -10/Materials | Discovered new exit (range 10) 1314 | -10/Materials | Discovered new exit (range 14) 1358 | -10/Materials | Entered another Materials area 1358 | -9/Materials | Evolved 2 slots: Propulsion x2 2049 | -9/Materials | Core integrity fell below 50% 2088 | -9/Materials | Lost 5 parts (1p1u3w) 2191 | -9/Materials | Discovered new exit (range 9) 2259 | -9/Materials | Entered another Materials area 2259 | -8/Materials | Evolved 2 slots: Utility x1, Weapon x1 2782 | -8/Materials | Lost 10 parts (1p3n2u4w) 2980 | -8/Materials | Core integrity fell below 50% 3013 | -8/Materials | Core integrity fell below 20% 3014 | -8/Materials | Destroyed by S-10 Pest with Light Assault Rifle Last Messages --------------- Slug penetrates Wall. Penetrated by Slug. Adv. Beam Cannon destroyed. Penetrated by Slug. Acquired 20 matter. Aluminum Leg severed. Imp. Light Armor Plating destroyed. Adv. Beam Cannon destroyed. Slug penetrates Wall. Penetrated by Slug. Aluminum Leg destroyed. Carbon-fiber Leg destroyed. Gauss Rifle destroyed. Penetrated by Slug. Acquired 7 matter. Penetrated by Slug. Critical hit (Burn: +37). Aluminum Leg destroyed. Penetrated by Slug. Aluminum Leg destroyed. Map ----- +----------------------------------------------------+ | ???????????????????????????????????????? | | ???????????????????????????????????????? | | ?????????????????? ????????????????????? | | ???????????????????????????????????????? | | ???????????????????????????????????????? | | ???????????????????????????????????????? | | ???????????????????????????????????????? | | ???????????????????????????????????????? | | ????????????????##+##??##??????????????? | | ?????????????#??# ??????????????????? | | ??????????????### #????????? ????????? | | ??????????????? ###????????????????? | | ????????????????# # ????????????????? | | ????????????????# # ####?#?#??????#??? | | ?????????? ?????# ##?#???#??????? | | ???????? ?? ????# #????##??????? | | ????????????????# #????????????? | | ??????????? ???# # #????????#???? | | ????????????????# #??##????????? | | ??# # #?# # ############?? | | ??# # #?# # ## #?# | | ??# # ### # x ## = #?? | | ### #####+####### ###; # # #?# | | s Yx # " """ #?? | | s ggl[[ + """ #?? | | k %s @%# = """ ##? | | ################+#########=# #?? | | #??????????# # # ## # !#?? | | #??????????#"S ######+## # ###### | | #??????????#""" =#% ! % # | | #??????????# "" ## % ! # | | #???######## ## # | | #???# # ## "" """ " # | | #???# """ ######### """ " "%""" " " # | | #???# "T" #???????# "" """ """["[ # | | #???# #???????# %! # | | #####?# #???????#########+#+####### | | #?# *%#??????#????????# ????? | | ########/###?????????????# ????? | | " #"#### [=[ #????#??????#?# % #???? | | "" =" ###########???#% = #???? | | " %+ % % = #???? | | " [" % ###########??## #???? | | "" ### ## #??########???# #???? | | "" ###=#""#"###??# """ ??? ???? | | "" # #=######????# "R" ""??? ???? | | "" ### #?????????# " " ""??# ???? | | " #?# #?????????# ""??+ #??? | | #?# #?????????# ??# #??? | | ### #?# #?????????# ??# #??? | +----------------------------------------------------+ Best States ------------- Heat Dissipation 41 Energy Generation 14 Energy Capacity 265 Matter Stores 300 Matter Capacity 400 Sight Range 16 Terrain Scan Range 14 Terrain Scan Density 10 Armor Coverage 150 Evasion (%) 55 Recoil Reduction 1 Offensive Hacking 10 Item Schematics ----------------- None Robot Schematics ------------------ None Fabricated ------------ Nothing Alien Tech Used ----------------- None Achievements -------------- Part-time Excavator Challenges ------------ None Game ------ Seed TiamatMobileEdition Manual? 0 Play Time 00:33:06 Cumulative 7.7 hours Start 2024.04.06 @ 02:32:54 End 2024.04.06 @ 09:51:52 Sessions 2 Manual Loads 0 Difficulty Rogue Special Mode None Game No. 12 Rogue 12 Adventurer 0 Explorer 0 Win Type - Total 0 Types 0/0/0/0/0/0/0/0/0 Lore% 16 Gallery% 13 Achievement% 11 Wizard Run 0 Options --------- Layout 1 ASCII 0 Keyboard 1 Movement Arrows Keybinds 0 Fullscreen 2 Font 24/Proggy Map View 50x35 Zoom Use 0% Tactical HUD 0 Map Filters NONE Filters NONE Steam 1 RUN: fce9c838-b604-474a-8675-ed0efe21f62b